[Event "Titled Tuesday Blitz April 18 Late 2023"]
[White "Vasques, Antonio Pedro Freixial"]
[Black "Horvath, Dominik"]
[WhiteFideId "1908332"]
[BlackFideId "1642561"]
[WhiteElo "2212"]
[BlackElo "2407"]
[Result "0-1"]
[Round "01"]
[TimeControl "180+2"]
[Date "2023.04.18"]
[WhiteClock "0:00:12"]
[BlackClock "0:01:13"]

1. e4 {[%clk 0:02:54]}  e5 {[%clk 0:02:57]} 2. Nf3 {[%clk 0:02:54]}  Nc6 {[%clk 0:02:57]} 3. Bc4 {[%clk 0:02:54]}  Nf6 {[%clk 0:02:56]} 4. Ng5 {[%clk 0:02:54]}  d5 {[%clk 0:02:54]} 5. exd5 {[%clk 0:02:55]}  b5 {[%clk 0:02:54]} 6. Bxb5 {[%clk 0:02:55]}  Qxd5 {[%clk 0:02:54]} 7. Bf1 {[%clk 0:02:56]}  e4 {[%clk 0:02:48]} 8. d3 {[%clk 0:02:54]}  Bg4 {[%clk 0:02:41]} 9. Be2 {[%clk 0:02:50]}  Bxe2 {[%clk 0:02:27]} 10. Qxe2 {[%clk 0:02:51]}  Nd4 {[%clk 0:02:28]} 11. Qd1 {[%clk 0:01:42]}  exd3 {[%clk 0:02:27]} 12. O-O {[%clk 0:01:38]}  dxc2 {[%clk 0:02:27]} 13. Qe1+ {[%clk 0:01:37]}  Be7 {[%clk 0:02:18]} 14. Nc3 {[%clk 0:01:35]}  Qd7 {[%clk 0:02:09]} 15. Be3 {[%clk 0:01:25]}  Nf5 {[%clk 0:02:09]} 16. Qe2 {[%clk 0:01:08]}  Nxe3 {[%clk 0:02:07]} 17. fxe3 {[%clk 0:01:04]}  O-O {[%clk 0:02:05]} 18. Qxc2 {[%clk 0:01:03]}  h6 {[%clk 0:02:05]} 19. Nge4 {[%clk 0:01:03]}  Nxe4 {[%clk 0:02:05]} 20. Qxe4 {[%clk 0:01:03]}  Rfe8 {[%clk 0:02:01]} 21. Rad1 {[%clk 0:01:01]}  Bd6 {[%clk 0:02:00]} 22. Qd3 {[%clk 0:00:47]}  Rab8 {[%clk 0:01:59]} 23. b3 {[%clk 0:00:40]}  Qe6 {[%clk 0:01:50]} 24. Nd5 {[%clk 0:00:39]}  Qe5 {[%clk 0:01:42]} 25. g3 {[%clk 0:00:19]}  Rbd8 {[%clk 0:01:38]} 26. Rf5 {[%clk 0:00:19]}  Qe6 {[%clk 0:01:33]} 27. Rdf1 {[%clk 0:00:19]}  Bf8 {[%clk 0:01:27]} 28. Rxf7 {[%clk 0:00:19]}  Rxd5 {[%clk 0:01:20]} 29. Qc4 {[%clk 0:00:12]}  Qxe3+ {[%clk 0:01:17]} 30. Kg2 {[%clk 0:00:13]}  Qe2+ {[%clk 0:01:17]} 31. R1f2 {[%clk 0:00:12]}  Qxc4 {[%clk 0:01:16]} 32. bxc4 {[%clk 0:00:12]}  Rc5 {[%clk 0:01:13]} 0-1


[Site "https://www.chess.com"]

[Event "Titled Tuesday Blitz April 18 Late 2023"]
[White "Feng, Eric"]
[Black "Ward, Ieuan C"]
[WhiteFideId "30952590"]
[BlackFideId "406627"]
[WhiteElo "1785"]
[BlackElo "2323"]
[Result "0-1"]
[Round "01"]
[TimeControl "180+2"]
[Date "2023.04.18"]
[WhiteClock "0:01:27"]
[BlackClock "0:00:51"]

1. d4 {[%clk 0:02:58]}  Nf6 {[%clk 0:02:59]} 2. c4 {[%clk 0:02:58]}  e6 {[%clk 0:02:59]} 3. Nf3 {[%clk 0:02:58]}  b6 {[%clk 0:02:59]} 4. g3 {[%clk 0:02:59]}  Bb7 {[%clk 0:03:00]} 5. Bg2 {[%clk 0:02:59]}  Be7 {[%clk 0:03:00]} 6. O-O {[%clk 0:03:00]}  O-O {[%clk 0:03:00]} 7. Nc3 {[%clk 0:03:01]}  Ne4 {[%clk 0:03:00]} 8. Qc2 {[%clk 0:03:01]}  Nxc3 {[%clk 0:02:59]} 9. bxc3 {[%clk 0:03:02]}  f5 {[%clk 0:02:58]} 10. Bf4 {[%clk 0:03:00]}  d6 {[%clk 0:02:58]} 11. Nd2 {[%clk 0:02:54]}  Bxg2 {[%clk 0:02:57]} 12. Kxg2 {[%clk 0:02:55]}  Nd7 {[%clk 0:02:57]} 13. e4 {[%clk 0:02:55]}  e5 {[%clk 0:02:50]} 14. dxe5 {[%clk 0:02:38]}  dxe5 {[%clk 0:02:51]} 15. Be3 {[%clk 0:02:39]}  f4 {[%clk 0:02:51]} 16. gxf4 {[%clk 0:02:39]}  exf4 {[%clk 0:02:50]} 17. Bd4 {[%clk 0:02:38]}  c5 {[%clk 0:02:50]} 18. Nf3 {[%clk 0:02:36]}  cxd4 {[%clk 0:02:49]} 19. cxd4 {[%clk 0:02:37]}  Qc7 {[%clk 0:02:34]} 20. Rac1 {[%clk 0:02:35]}  Rac8 {[%clk 0:02:29]} 21. e5 {[%clk 0:02:33]}  b5 {[%clk 0:02:04]} 22. c5 {[%clk 0:02:31]}  Qc6 {[%clk 0:02:02]} 23. Qb3+ {[%clk 0:02:29]}  Kh8 {[%clk 0:02:00]} 24. d5 {[%clk 0:02:30]}  Qg6+ {[%clk 0:01:55]} 25. Kh1 {[%clk 0:02:29]}  Rxc5 {[%clk 0:01:49]} 26. Rxc5 {[%clk 0:02:28]}  Nxc5 {[%clk 0:01:46]} 27. Qxb5 {[%clk 0:02:28]}  Qe4 {[%clk 0:01:45]} 28. Kg2 {[%clk 0:02:22]}  Qxd5 {[%clk 0:01:43]} 29. Re1 {[%clk 0:02:15]}  g5 {[%clk 0:01:36]} 30. h3 {[%clk 0:02:15]}  h5 {[%clk 0:01:34]} 31. Qb1 {[%clk 0:02:08]}  Kg7 {[%clk 0:01:20]} 32. Rd1 {[%clk 0:01:59]}  Qc6 {[%clk 0:01:15]} 33. Rg1 {[%clk 0:01:46]}  g4 {[%clk 0:01:12]} 34. hxg4 {[%clk 0:01:46]}  hxg4 {[%clk 0:01:12]} 35. Qd1 {[%clk 0:01:38]}  Qxf3+ {[%clk 0:01:04]} 36. Qxf3 {[%clk 0:01:38]}  gxf3+ {[%clk 0:01:04]} 37. Kxf3+ {[%clk 0:01:39]}  Kh6 {[%clk 0:00:59]} 38. Rh1+ {[%clk 0:01:30]}  Kg6 {[%clk 0:00:59]} 39. Kg4 {[%clk 0:01:28]}  Nd3 {[%clk 0:00:54]} 40. Rg1 {[%clk 0:01:27]}  Nxe5+ {[%clk 0:00:52]} 41. Kh3+ {[%clk 0:01:27]}  Kf5 {[%clk 0:00:51]} 0-1


[Site "https://www.chess.com"]

[Event "Titled Tuesday Blitz April 18 Late 2023"]
[White "Kraus, Tomas"]
[Black "Larino Nieto, David"]
[WhiteFideId "331708"]
[BlackFideId "2256444"]
[WhiteElo "2389"]
[BlackElo "2506"]
[Result "0-1"]
[Round "01"]
[TimeControl "180+2"]
[Date "2023.04.18"]
[WhiteClock "0:00:04"]
[BlackClock "0:00:31"]

1. d4 {[%clk 0:02:57]}  e6 {[%clk 0:03:00]} 2. c4 {[%clk 0:02:56]}  b6 {[%clk 0:03:00]} 3. Nc3 {[%clk 0:02:53]}  Bb7 {[%clk 0:03:01]} 4. a3 {[%clk 0:02:52]}  Nf6 {[%clk 0:02:57]} 5. d5 {[%clk 0:02:48]}  c6 {[%clk 0:02:43]} 6. e4 {[%clk 0:02:45]}  cxd5 {[%clk 0:02:43]} 7. exd5 {[%clk 0:02:43]}  exd5 {[%clk 0:02:32]} 8. cxd5 {[%clk 0:02:42]}  Bc5 {[%clk 0:02:31]} 9. Be2 {[%clk 0:02:24]}  O-O {[%clk 0:02:27]} 10. Nf3 {[%clk 0:02:25]}  Re8 {[%clk 0:02:22]} 11. O-O {[%clk 0:02:24]}  a5 {[%clk 0:02:21]} 12. Bg5 {[%clk 0:02:22]}  h6 {[%clk 0:02:21]} 13. Bh4 {[%clk 0:02:22]}  Na6 {[%clk 0:02:01]} 14. Nd4 {[%clk 0:01:31]}  g5 {[%clk 0:01:42]} 15. Bg3 {[%clk 0:01:30]}  Nxd5 {[%clk 0:01:41]} 16. Nxd5 {[%clk 0:01:23]}  Bxd5 {[%clk 0:01:42]} 17. Nf5 {[%clk 0:01:23]}  Be4 {[%clk 0:01:28]} 18. Nd6 {[%clk 0:00:50]}  Bxd6 {[%clk 0:01:17]} 19. Bxd6 {[%clk 0:00:51]}  Nc5 {[%clk 0:01:11]} 20. Bc4 {[%clk 0:00:51]}  Bg6 {[%clk 0:01:09]} 21. f3 {[%clk 0:00:36]}  Ne6 {[%clk 0:01:05]} 22. Qd2 {[%clk 0:00:26]}  b5 {[%clk 0:01:05]} 23. Ba2 {[%clk 0:00:20]}  Qb6+ {[%clk 0:01:05]} 24. Kh1 {[%clk 0:00:21]}  Rac8 {[%clk 0:01:04]} 25. Rac1 {[%clk 0:00:20]}  Qd4 {[%clk 0:01:01]} 26. Qxd4 {[%clk 0:00:14]}  Nxd4 {[%clk 0:01:02]} 27. Bc7 {[%clk 0:00:09]}  b4 {[%clk 0:00:48]} 28. Bxa5 {[%clk 0:00:07]}  b3 {[%clk 0:00:43]} 29. Bb1 {[%clk 0:00:06]}  Bxb1 {[%clk 0:00:40]} 30. Rxb1 {[%clk 0:00:07]}  Rc2 {[%clk 0:00:40]} 31. Bc3 {[%clk 0:00:07]}  Nf5 {[%clk 0:00:37]} 32. Rfe1 {[%clk 0:00:07]}  Rxe1+ {[%clk 0:00:34]} 33. Rxe1 {[%clk 0:00:06]}  d5 {[%clk 0:00:33]} 34. Kg1 {[%clk 0:00:06]}  d4 {[%clk 0:00:34]} 35. Bb4 {[%clk 0:00:05]}  Rxb2 {[%clk 0:00:33]} 36. Re5 {[%clk 0:00:05]}  Rc2 {[%clk 0:00:31]} 37. Rxf5 {[%clk 0:00:04]}  b2 {[%clk 0:00:31]} 0-1


[Site "https://www.chess.com"]

[Event "Titled Tuesday Blitz April 18 Late 2023"]
[White "Tregubov, Pavel V."]
[Black "ilya2700"]
[WhiteFideId "4115341"]
[WhiteElo "2425"]
[BlackElo "2311"]
[Result "1-0"]
[Round "01"]
[TimeControl "180+2"]
[Date "2023.04.18"]
[WhiteClock "0:01:02"]
[BlackClock "0:00:01"]

1. e4 {[%clk 0:02:59]}  c5 {[%clk 0:03:00]} 2. Nf3 {[%clk 0:02:59]}  e6 {[%clk 0:03:00]} 3. c3 {[%clk 0:02:58]}  Nf6 {[%clk 0:03:00]} 4. e5 {[%clk 0:02:58]}  Nd5 {[%clk 0:03:01]} 5. d4 {[%clk 0:02:58]}  cxd4 {[%clk 0:03:01]} 6. cxd4 {[%clk 0:02:59]}  d6 {[%clk 0:03:02]} 7. Bc4 {[%clk 0:02:59]}  Nc6 {[%clk 0:03:02]} 8. O-O {[%clk 0:02:59]}  Be7 {[%clk 0:03:02]} 9. Qe2 {[%clk 0:02:59]}  O-O {[%clk 0:03:02]} 10. Rd1 {[%clk 0:03:00]}  Na5 {[%clk 0:02:47]} 11. Bd3 {[%clk 0:03:00]}  Nb4 {[%clk 0:02:47]} 12. Nc3 {[%clk 0:03:00]}  Nxd3 {[%clk 0:02:46]} 13. Rxd3 {[%clk 0:03:01]}  b6 {[%clk 0:02:42]} 14. b4 {[%clk 0:03:01]}  Nc6 {[%clk 0:02:01]} 15. a3 {[%clk 0:03:01]}  a5 {[%clk 0:01:43]} 16. b5 {[%clk 0:02:58]}  Na7 {[%clk 0:01:42]} 17. d5 {[%clk 0:02:38]}  exd5 {[%clk 0:01:06]} 18. Nxd5 {[%clk 0:02:32]}  Nxb5 {[%clk 0:00:46]} 19. Bf4 {[%clk 0:02:31]}  Bf5 {[%clk 0:00:37]} 20. Rd2 {[%clk 0:02:21]}  Re8 {[%clk 0:00:24]} 21. Qxb5 {[%clk 0:02:20]}  Bf8 {[%clk 0:00:14]} 22. exd6 {[%clk 0:02:12]}  Bd7 {[%clk 0:00:14]} 23. Qxb6 {[%clk 0:02:09]}  Qxb6 {[%clk 0:00:13]} 24. Nxb6 {[%clk 0:02:09]}  Rad8 {[%clk 0:00:13]} 25. Nxd7 {[%clk 0:02:04]}  Rxd7 {[%clk 0:00:14]} 26. Rad1 {[%clk 0:01:59]}  f6 {[%clk 0:00:14]} 27. Kf1 {[%clk 0:01:56]}  a4 {[%clk 0:00:14]} 28. Nd4 {[%clk 0:01:54]}  g5 {[%clk 0:00:13]} 29. Bg3 {[%clk 0:01:54]}  h5 {[%clk 0:00:11]} 30. h4 {[%clk 0:01:46]}  gxh4 {[%clk 0:00:10]} 31. Bf4 {[%clk 0:01:45]}  Re4 {[%clk 0:00:07]} 32. Ne2 {[%clk 0:01:38]}  f5 {[%clk 0:00:04]} 33. f3 {[%clk 0:01:36]}  Re6 {[%clk 0:00:04]} 34. Nd4 {[%clk 0:01:32]}  Rf6 {[%clk 0:00:04]} 35. Nc6 {[%clk 0:01:25]}  h3 {[%clk 0:00:04]} 36. gxh3 {[%clk 0:01:25]}  h4 {[%clk 0:00:03]} 37. Ne7+ {[%clk 0:01:07]}  Rxe7 {[%clk 0:00:02]} 38. dxe7 {[%clk 0:01:07]}  Bxe7 {[%clk 0:00:03]} 39. Bg5 {[%clk 0:01:04]}  Re6 {[%clk 0:00:03]} 40. Bxe7 {[%clk 0:01:03]}  Rxe7 {[%clk 0:00:04]} 41. Rd8+ {[%clk 0:01:03]}  Kf7 {[%clk 0:00:01]} 42. R8d7 {[%clk 0:01:03]}  Kg6 {[%clk 0:00:01]} 43. Rxe7 {[%clk 0:01:02]} 1-0


[Site "https://www.chess.com"]

[Event "Titled Tuesday Blitz April 18 Late 2023"]
[White "Fajdetic, Hrvoje"]
[Black "Aldokhin, Ivan"]
[WhiteFideId "14501945"]
[BlackFideId "24115720"]
[WhiteElo "2185"]
[BlackElo "2322"]
[Result "0-1"]
[Round "01"]
[TimeControl "180+2"]
[Date "2023.04.18"]
[WhiteClock "0:00:29"]
[BlackClock "0:00:37"]

1. d4 {[%clk 0:02:57]}  Nf6 {[%clk 0:02:59]} 2. Bf4 {[%clk 0:02:57]}  e6 {[%clk 0:02:57]} 3. e3 {[%clk 0:02:57]}  b6 {[%clk 0:02:57]} 4. Be2 {[%clk 0:02:56]}  Bb7 {[%clk 0:02:57]} 5. Bf3 {[%clk 0:02:57]}  d5 {[%clk 0:02:54]} 6. c4 {[%clk 0:02:51]}  Bd6 {[%clk 0:02:53]} 7. Ne2 {[%clk 0:02:50]}  O-O {[%clk 0:02:50]} 8. Nbc3 {[%clk 0:02:50]}  Bxf4 {[%clk 0:02:33]} 9. Nxf4 {[%clk 0:02:51]}  c6 {[%clk 0:02:33]} 10. e4 {[%clk 0:02:42]}  dxc4 {[%clk 0:02:12]} 11. e5 {[%clk 0:02:34]}  Nd5 {[%clk 0:02:12]} 12. Qd2 {[%clk 0:02:29]}  Na6 {[%clk 0:01:41]} 13. Ne4 {[%clk 0:02:24]}  Nxf4 {[%clk 0:01:35]} 14. Qxf4 {[%clk 0:02:22]}  Nb4 {[%clk 0:01:36]} 15. O-O {[%clk 0:02:19]}  Nd5 {[%clk 0:01:32]} 16. Qg3 {[%clk 0:02:13]}  a5 {[%clk 0:01:25]} 17. Nd6 {[%clk 0:02:03]}  Ba6 {[%clk 0:01:25]} 18. Bxd5 {[%clk 0:02:01]}  cxd5 {[%clk 0:01:21]} 19. f4 {[%clk 0:02:01]}  f5 {[%clk 0:01:18]} 20. Rfc1 {[%clk 0:01:51]}  b5 {[%clk 0:01:17]} 21. a3 {[%clk 0:01:50]}  Qb6 {[%clk 0:01:17]} 22. Qf2 {[%clk 0:01:45]}  Ra7 {[%clk 0:01:16]} 23. Rc3 {[%clk 0:01:44]}  b4 {[%clk 0:01:15]} 24. Rh3 {[%clk 0:01:36]}  Rb8 {[%clk 0:00:55]} 25. Qh4 {[%clk 0:01:32]}  Qxd4+ {[%clk 0:00:53]} 26. Kh1 {[%clk 0:01:30]}  h6 {[%clk 0:00:52]} 27. Rg1 {[%clk 0:00:44]}  c3 {[%clk 0:00:41]} 28. bxc3 {[%clk 0:00:35]}  bxc3 {[%clk 0:00:40]} 29. Qg3 {[%clk 0:00:32]}  c2 {[%clk 0:00:37]} 30. Rxh6 {[%clk 0:00:31]}  Qxg1+ {[%clk 0:00:37]} 31. Kxg1 {[%clk 0:00:30]}  c1=Q+ {[%clk 0:00:38]} 32. Kf2 {[%clk 0:00:29]}  Rb2+ {[%clk 0:00:37]} 0-1


[Site "https://www.chess.com"]

[Event "Titled Tuesday Blitz April 18 Late 2023"]
[White "Wieczorek, Oskar"]
[Black "Garrido, Denis"]
[WhiteFideId "1133950"]
[BlackFideId "601217"]
[WhiteElo "2418"]
[BlackElo "2308"]
[Result "1-0"]
[Round "01"]
[TimeControl "180+2"]
[Date "2023.04.18"]
[WhiteClock "0:02:23"]
[BlackClock "0:00:48"]

1. e4 {[%clk 0:02:59]}  e6 {[%clk 0:03:00]} 2. d4 {[%clk 0:02:59]}  d5 {[%clk 0:03:01]} 3. Nd2 {[%clk 0:03:00]}  Be7 {[%clk 0:03:00]} 4. Bd3 {[%clk 0:02:53]}  c5 {[%clk 0:02:59]} 5. dxc5 {[%clk 0:02:52]}  Nf6 {[%clk 0:02:59]} 6. Qe2 {[%clk 0:02:52]}  O-O {[%clk 0:02:58]} 7. Ngf3 {[%clk 0:02:52]}  a5 {[%clk 0:02:58]} 8. O-O {[%clk 0:02:53]}  Na6 {[%clk 0:02:56]} 9. e5 {[%clk 0:02:53]}  Nd7 {[%clk 0:02:56]} 10. c4 {[%clk 0:02:54]}  Naxc5 {[%clk 0:02:52]} 11. Bc2 {[%clk 0:02:53]}  b6 {[%clk 0:02:39]} 12. Rd1 {[%clk 0:02:50]}  Ba6 {[%clk 0:02:37]} 13. b3 {[%clk 0:02:46]}  f5 {[%clk 0:02:19]} 14. Nd4 {[%clk 0:02:44]}  Rc8 {[%clk 0:02:13]} 15. N2f3 {[%clk 0:02:31]}  g5 {[%clk 0:01:48]} 16. Nb5 {[%clk 0:02:27]}  g4 {[%clk 0:01:45]} 17. Nfd4 {[%clk 0:02:27]}  Rf7 {[%clk 0:01:27]} 18. cxd5 {[%clk 0:02:23]}  Rg7 {[%clk 0:00:48]} 1-0


[Site "https://www.chess.com"]

[Event "Titled Tuesday Blitz April 18 Late 2023"]
[White "Ng, Gary"]
[Black "Averjanov, Alexey"]
[WhiteFideId "2604914"]
[BlackFideId "14109867"]
[WhiteElo "2305"]
[BlackElo "2625"]
[Result "1/2-1/2"]
[Round "01"]
[TimeControl "180+2"]
[Date "2023.04.18"]
[WhiteClock "0:00:04"]
[BlackClock "0:00:06"]

1. d4 {[%clk 0:03:00]}  d5 {[%clk 0:02:49]} 2. Bf4 {[%clk 0:03:01]}  Nf6 {[%clk 0:02:48]} 3. e3 {[%clk 0:03:01]}  e6 {[%clk 0:02:49]} 4. Nd2 {[%clk 0:03:01]}  c5 {[%clk 0:02:49]} 5. c3 {[%clk 0:03:02]}  Bd6 {[%clk 0:02:48]} 6. Bg3 {[%clk 0:03:02]}  Qc7 {[%clk 0:02:47]} 7. Ngf3 {[%clk 0:03:02]}  Nbd7 {[%clk 0:02:47]} 8. Ne5 {[%clk 0:03:02]}  Nxe5 {[%clk 0:02:47]} 9. dxe5 {[%clk 0:03:03]}  Bxe5 {[%clk 0:02:47]} 10. Bb5+ {[%clk 0:03:04]}  Bd7 {[%clk 0:02:46]} 11. Bxd7+ {[%clk 0:03:04]}  Nxd7 {[%clk 0:02:47]} 12. Qg4 {[%clk 0:03:03]}  O-O {[%clk 0:02:43]} 13. Nf3 {[%clk 0:02:56]}  Bd6 {[%clk 0:02:36]} 14. Rd1 {[%clk 0:02:45]}  Ne5 {[%clk 0:02:35]} 15. Qh5 {[%clk 0:02:38]}  Nxf3+ {[%clk 0:02:32]} 16. gxf3 {[%clk 0:02:39]}  Rad8 {[%clk 0:02:26]} 17. Rg1 {[%clk 0:02:30]}  Bxg3 {[%clk 0:02:23]} 18. Rxg3 {[%clk 0:02:26]}  g6 {[%clk 0:02:17]} 19. Qh6 {[%clk 0:02:21]}  Qe5 {[%clk 0:02:17]} 20. h4 {[%clk 0:01:50]}  Qg7 {[%clk 0:02:16]} 21. Qf4 {[%clk 0:01:48]}  e5 {[%clk 0:02:17]} 22. Qa4 {[%clk 0:01:46]}  a6 {[%clk 0:02:16]} 23. h5 {[%clk 0:01:45]}  f5 {[%clk 0:02:13]} 24. hxg6 {[%clk 0:01:44]}  hxg6 {[%clk 0:02:14]} 25. Qh4 {[%clk 0:01:37]}  Kf7 {[%clk 0:02:13]} 26. f4 {[%clk 0:01:16]}  Rh8 {[%clk 0:02:06]} 27. Qg5 {[%clk 0:01:16]}  e4 {[%clk 0:01:56]} 28. Ke2 {[%clk 0:01:11]}  Qf6 {[%clk 0:01:47]} 29. Rdg1 {[%clk 0:00:44]}  Qxg5 {[%clk 0:01:43]} 30. Rxg5 {[%clk 0:00:45]}  Rh6 {[%clk 0:01:42]} 31. Rd1 {[%clk 0:00:44]}  Kf6 {[%clk 0:01:39]} 32. Rg2 {[%clk 0:00:38]}  b5 {[%clk 0:01:37]} 33. Rd2 {[%clk 0:00:31]}  Rh1 {[%clk 0:01:35]} 34. Rd1 {[%clk 0:00:31]}  Rxd1 {[%clk 0:01:35]} 35. Kxd1 {[%clk 0:00:32]}  Rh8 {[%clk 0:01:28]} 36. Rg1 {[%clk 0:00:31]}  Rh5 {[%clk 0:01:24]} 37. Ke2 {[%clk 0:00:31]}  g5 {[%clk 0:01:18]} 38. fxg5+ {[%clk 0:00:27]}  Rxg5 {[%clk 0:01:19]} 39. Rd1 {[%clk 0:00:28]}  Ke5 {[%clk 0:01:19]} 40. Rh1 {[%clk 0:00:28]}  Rg6 {[%clk 0:01:15]} 41. Rh8 {[%clk 0:00:28]}  Re6 {[%clk 0:01:03]} 42. Rf8 {[%clk 0:00:28]}  Rf6 {[%clk 0:00:53]} 43. Re8+ {[%clk 0:00:28]}  Kd6 {[%clk 0:00:53]} 44. Ra8 {[%clk 0:00:29]}  Kc7 {[%clk 0:00:52]} 45. Ra7+ {[%clk 0:00:26]}  Kb6 {[%clk 0:00:51]} 46. Rd7 {[%clk 0:00:26]}  Kc6 {[%clk 0:00:51]} 47. Ra7 {[%clk 0:00:27]}  Kb6 {[%clk 0:00:40]} 48. Rd7 {[%clk 0:00:27]}  d4 {[%clk 0:00:38]} 49. cxd4 {[%clk 0:00:27]}  cxd4 {[%clk 0:00:39]} 50. Rxd4 {[%clk 0:00:26]}  Kc5 {[%clk 0:00:37]} 51. b4+ {[%clk 0:00:25]}  Kc6 {[%clk 0:00:36]} 52. Rd8 {[%clk 0:00:24]}  Rd6 {[%clk 0:00:29]} 53. Rc8+ {[%clk 0:00:21]}  Kd5 {[%clk 0:00:25]} 54. Rc5+ {[%clk 0:00:20]}  Ke6 {[%clk 0:00:25]} 55. a4 {[%clk 0:00:15]}  bxa4 {[%clk 0:00:19]} 56. Ra5 {[%clk 0:00:16]}  Rb6 {[%clk 0:00:15]} 57. Rxa4 {[%clk 0:00:16]}  Kf6 {[%clk 0:00:14]} 58. Kd2 {[%clk 0:00:15]}  Kg5 {[%clk 0:00:14]} 59. Ke2 {[%clk 0:00:15]}  Kg4 {[%clk 0:00:14]} 60. Ke1 {[%clk 0:00:14]}  Kf3 {[%clk 0:00:14]} 61. Ra5 {[%clk 0:00:14]}  Kg4 {[%clk 0:00:10]} 62. Ra4 {[%clk 0:00:13]}  f4 {[%clk 0:00:06]} 63. exf4 {[%clk 0:00:14]}  Kxf4 {[%clk 0:00:07]} 64. Ke2 {[%clk 0:00:14]}  Rc6 {[%clk 0:00:07]} 65. Ra2 {[%clk 0:00:09]}  Rb6 {[%clk 0:00:05]} 66. Ra4 {[%clk 0:00:08]}  Rc6 {[%clk 0:00:04]} 67. Ra2 {[%clk 0:00:08]}  Rh6 {[%clk 0:00:04]} 68. Rb2 {[%clk 0:00:03]}  Rb6 {[%clk 0:00:03]} 69. Ra2 {[%clk 0:00:03]}  Ke5 {[%clk 0:00:03]} 70. Ra5+ {[%clk 0:00:03]}  Kd4 {[%clk 0:00:04]} 71. Ra2 {[%clk 0:00:03]}  Kc4 {[%clk 0:00:03]} 72. Rc2+ {[%clk 0:00:01]}  Kxb4 {[%clk 0:00:03]} 73. Ke3 {[%clk 0:00:02]}  Re6 {[%clk 0:00:03]} 74. Rb2+ {[%clk 0:00:02]}  Ka4 {[%clk 0:00:02]} 75. Ra2+ {[%clk 0:00:02]}  Kb5 {[%clk 0:00:03]} 76. f4 {[%clk 0:00:02]}  exf3+ {[%clk 0:00:03]} 77. Kxf3 {[%clk 0:00:03]}  a5 {[%clk 0:00:03]} 78. Kf4 {[%clk 0:00:03]}  Re8 {[%clk 0:00:03]} 79. Kf3 {[%clk 0:00:03]}  a4 {[%clk 0:00:04]} 80. Re2 {[%clk 0:00:03]}  Kb4 {[%clk 0:00:04]} 81. Rxe8 {[%clk 0:00:02]}  a3 {[%clk 0:00:05]} 82. Rb8+ {[%clk 0:00:03]}  Kc3 {[%clk 0:00:05]} 83. Ke2 {[%clk 0:00:03]}  a2 {[%clk 0:00:05]} 84. Ra8 {[%clk 0:00:04]}  Kb2 {[%clk 0:00:05]} 85. Kd2 {[%clk 0:00:04]}  a1=Q {[%clk 0:00:05]} 86. Rxa1 {[%clk 0:00:04]}  Kxa1 {[%clk 0:00:06]} 1/2-1/2


[Site "https://www.chess.com"]

[Event "Titled Tuesday Blitz April 18 Late 2023"]
[White "Mendez Fortes, Eduardo Jesus"]
[Black "Li, Hui"]
[WhiteFideId "3502376"]
[BlackFideId "15400310"]
[WhiteElo "2307"]
[BlackElo "1967"]
[Result "1-0"]
[Round "01"]
[TimeControl "180+2"]
[Date "2023.04.18"]
[WhiteClock "0:00:44"]
[BlackClock "0:00:01"]

1. e4 {[%clk 0:03:00]}  e5 {[%clk 0:03:00]} 2. Nf3 {[%clk 0:03:00]}  Nf6 {[%clk 0:03:00]} 3. d4 {[%clk 0:03:00]}  exd4 {[%clk 0:03:01]} 4. e5 {[%clk 0:02:59]}  Ne4 {[%clk 0:03:01]} 5. Qxd4 {[%clk 0:02:57]}  d5 {[%clk 0:02:58]} 6. exd6 {[%clk 0:02:57]}  Nxd6 {[%clk 0:02:58]} 7. Bd3 {[%clk 0:02:52]}  Nc6 {[%clk 0:02:58]} 8. Qe3+ {[%clk 0:02:50]}  Qe7 {[%clk 0:02:48]} 9. c3 {[%clk 0:02:50]}  Bf5 {[%clk 0:02:38]} 10. Bxf5 {[%clk 0:02:45]}  Nxf5 {[%clk 0:02:39]} 11. Qxe7+ {[%clk 0:02:45]}  Bxe7 {[%clk 0:02:40]} 12. O-O {[%clk 0:02:45]}  O-O {[%clk 0:02:36]} 13. Nbd2 {[%clk 0:02:46]}  Rfe8 {[%clk 0:02:31]} 14. Nc4 {[%clk 0:02:44]}  Nd6 {[%clk 0:02:24]} 15. Ne3 {[%clk 0:02:44]}  Ne4 {[%clk 0:02:15]} 16. Nd5 {[%clk 0:02:39]}  Bd6 {[%clk 0:02:13]} 17. Be3 {[%clk 0:02:37]}  Ne7 {[%clk 0:02:06]} 18. Nxe7+ {[%clk 0:02:34]}  Rxe7 {[%clk 0:02:04]} 19. Nd4 {[%clk 0:02:34]}  a6 {[%clk 0:01:29]} 20. Nf5 {[%clk 0:02:32]}  Ree8 {[%clk 0:01:28]} 21. Rad1 {[%clk 0:02:27]}  Rad8 {[%clk 0:01:24]} 22. Rd4 {[%clk 0:02:14]}  Bc5 {[%clk 0:01:00]} 23. Rxe4 {[%clk 0:02:06]}  Rxe4 {[%clk 0:00:52]} 24. Bxc5 {[%clk 0:02:05]}  Re5 {[%clk 0:00:44]} 25. Ne7+ {[%clk 0:01:05]}  Kh8 {[%clk 0:00:42]} 26. b4 {[%clk 0:01:04]}  Re8 {[%clk 0:00:29]} 27. f4 {[%clk 0:01:03]}  R5xe7 {[%clk 0:00:28]} 28. Bxe7 {[%clk 0:01:03]}  Rxe7 {[%clk 0:00:29]} 29. Rd1 {[%clk 0:01:03]}  h5 {[%clk 0:00:25]} 30. Kf2 {[%clk 0:01:03]}  Re4 {[%clk 0:00:23]} 31. g3 {[%clk 0:00:58]}  Rc4 {[%clk 0:00:22]} 32. Rd3 {[%clk 0:00:58]}  c5 {[%clk 0:00:20]} 33. a3 {[%clk 0:00:58]}  cxb4 {[%clk 0:00:20]} 34. axb4 {[%clk 0:00:58]}  b6 {[%clk 0:00:18]} 35. Ke3 {[%clk 0:00:58]}  a5 {[%clk 0:00:18]} 36. bxa5 {[%clk 0:00:56]}  bxa5 {[%clk 0:00:19]} 37. Kd2 {[%clk 0:00:57]}  g6 {[%clk 0:00:16]} 38. Rd5 {[%clk 0:00:53]}  a4 {[%clk 0:00:13]} 39. Ra5 {[%clk 0:00:53]}  Kg7 {[%clk 0:00:12]} 40. Kd3 {[%clk 0:00:53]}  Rc7 {[%clk 0:00:10]} 41. Rxa4 {[%clk 0:00:53]}  h4 {[%clk 0:00:08]} 42. gxh4 {[%clk 0:00:53]}  Rb7 {[%clk 0:00:06]} 43. c4 {[%clk 0:00:51]}  Rb2 {[%clk 0:00:05]} 44. c5 {[%clk 0:00:50]}  Rb3+ {[%clk 0:00:04]} 45. Ke4 {[%clk 0:00:47]}  Rc3 {[%clk 0:00:04]} 46. Kd5 {[%clk 0:00:47]}  Kf6 {[%clk 0:00:03]} 47. Kd6 {[%clk 0:00:47]}  Rd3+ {[%clk 0:00:03]} 48. Kc7 {[%clk 0:00:47]}  Rh3 {[%clk 0:00:02]} 49. c6 {[%clk 0:00:45]}  Rxh2 {[%clk 0:00:02]} 50. Rc4 {[%clk 0:00:44]}  Rxh4 {[%clk 0:00:02]} 51. Kd7 {[%clk 0:00:44]}  Rh2 {[%clk 0:00:02]} 52. c7 {[%clk 0:00:45]}  Rd2+ {[%clk 0:00:02]} 53. Kc6 {[%clk 0:00:44]}  Kf5 {[%clk 0:00:01]} 54. c8=Q+ {[%clk 0:00:44]} 1-0


[Site "https://www.chess.com"]